bitfinex-derivatives/quotes_BNBF0:USTF0_20250710
["timestamp","ask_amount","ask_price","bid_price","bid_amount"]
[1752166445348,1.66871275,672.09,671.42,1.651537]
[1752166449253,1.66871275,672.1,671.42,1.651537]
[1752166450457,1.66871275,672.09,671.42,1.651537]
[1752166451253,1.66871275,672.1,671.42,1.651537]
[1752166451458,1.66871275,672.09,671.43,1.651537]
[1752166452254,1.66871275,672.1,671.42,1.651537]
[1752166452755,1.66871275,672.1,671.41,1.651537]
[1752166453259,1.66871275,672.12,671.39,1.651537]
[1752166453957,1.66871275,672.08,671.36,1.651537]
[1752166454258,1.66871275,672.09,671.35,1.651537]
[1752166454853,1.66871275,672.09,671.28,1.869]
[1752166454854,1.66871275,672.09,671.34,1.651537]
[1752166455054,1.66871275,672.09,671.35,1.651537]
[1752166455354,1.66871275,672.09,671.34,1.651537]
[1752166456359,1.66871275,672.1,671.34,1.651537]
[1752166458158,1.66871275,672.09,671.34,1.651537]
[1752166458357,1.66871275,672.1,671.33,1.651537]
[1752166459360,1.66871275,672.11,671.33,1.651537]
[1752166459868,1.66871275,672.1,671.33,1.651537]
[1752166461361,1.66871275,672.1,671.34,1.759]
[1752166462761,1.66871275,672.1,671.34,3.410537]
[1752166463968,1.66871275,672.05,671.34,1.759]
[1752166465575,1.66871275,672.06,671.34,1.759]
[1752166465775,1.66871275,672.05,671.34,1.759]
[1752166466374,1.66871275,672.03,671.34,1.759]
[1752166471477,1.66871275,671.95,671.34,1.759]
[1752166473874,1.66871275,671.96,671.34,1.759]
[1752166474979,1.66871275,671.95,671.34,1.759]
[1752166475275,1.66871275,671.96,671.34,1.759]
[1752166476074,1.66871275,671.95,671.34,1.759]
[1752166476277,1.66871275,671.96,671.34,1.759]
[1752166477781,1.66871275,671.95,671.34,1.759]
[1752166479884,1.66871275,671.94,671.34,1.759]
[1752166482385,1.66871275,671.93,671.34,1.759]
[1752166483780,1.66871275,671.92,671.34,1.759]
[1752166484581,1.66871275,671.91,671.34,1.759]
[1752166485681,1.66871275,671.94,671.34,1.759]
[1752166485881,1.66871275,672.04,671.34,1.759]
[1752166486282,2.22616171,672.28,671.34,1.759]
[1752166486283,1.66871275,672.03,671.34,1.759]
[1752166486486,1.66871275,672.04,671.34,1.759]
[1752166487384,1.66871275,672.03,671.34,1.759]
[1752166489387,1.66871275,672.02,671.34,1.759]
[1752166489588,1.66871275,672.03,671.34,1.759]
[1752166490088,1.66871275,671.98,671.34,1.759]
[1752166490286,1.66871275,671.97,671.34,1.759]
[1752166490784,1.66871275,672.14,671.41,1.651537]
[1752166491987,1.66871275,672.14,671.43,1.651537]
[1752166493986,1.66871275,672.19,671.48,1.651537]
[1752166494785,1.66871275,672.19,671.48,1.64880625]
[1752166494786,1.66809872,672.19,671.48,1.64880625]
[1752166495284,1.66809872,672.19,671.49,1.64880625]
[1752166495489,1.66809872,672.19,671.34,1.759]
[1752166495490,1.66809872,672.15,671.48,1.64880625]
[1752166495690,1.66809872,672.16,671.48,1.64880625]
[1752166495889,1.66809872,672.16,671.49,1.64880625]
[1752166496887,1.66809872,672.14,671.52,1.64880625]
[1752166499689,1.66809872,672.13,671.54,1.64880625]
[1752166499893,1.66809872,672.14,671.51,1.64880625]
[1752166500890,1.66809872,672.14,671.52,2.525]
[1752166501092,1.66809872,672.15,671.52,2.525]
[1752166503095,2.22616171,672.3,671.52,2.525]
[1752166503293,1.66782511,672.15,671.52,2.525]
[1752166503494,1.66782511,672.16,671.52,2.525]
[1752166503993,1.66782511,672.14,671.52,2.525]
[1752166507997,1.66782511,672.13,671.52,2.525]
[1752166512897,1.66782511,672.12,671.52,2.525]
[1752166516396,1.66782511,672.14,671.52,2.525]
[1752166518102,1.66782511,672.15,671.52,2.525]
[1752166519898,1.66782511,672.12,671.52,2.525]
[1752166522802,1.66782511,672.12,671.42,1.64862498]
[1752166526199,1.66782511,672.12,671.43,3.61862498]
[1752166526401,1.66782511,672.11,671.43,3.61862498]
[1752166527104,1.66782511,672.11,671.43,1.97]
[1752166527404,1.66782511,672.11,671.43,3.61862498]
[1752166527805,1.66782511,672.1,671.45,1.64862498]
[1752166529405,1.66782511,672.11,671.43,3.61862498]
[1752166530104,1.66782511,672.08,671.43,1.97]
[1752166533211,1.66782511,672.07,671.43,1.97]
[1752166533612,1.66782511,672.0,671.43,1.97]
[1752166534014,1.66782511,672.01,671.43,1.97]
[1752166534413,1.66782511,672.0,671.43,1.97]
[1752166535814,1.66782511,671.99,671.43,1.97]
[1752166536214,1.66782511,671.98,671.43,1.97]
[1752166539114,1.66782511,672.06,671.43,1.97]
[1752166539413,1.66782511,671.95,671.43,1.97]
[1752166541414,1.66782511,671.95,671.32,0.25894591]
[1752166542314,1.66782511,671.95,671.12,1.64862498]
[1752166542511,1.66782511,671.92,671.24,0.25907411]
[1752166542912,1.66782511,671.84,671.24,0.25907411]
[1752166543315,1.66782511,671.85,671.24,0.25907411]
[1752166543510,1.66782511,671.82,671.24,0.25907411]
[1752166544113,1.66782511,671.87,671.24,0.25907411]
[1752166544513,1.66782511,671.86,671.24,0.25907411]
[1752166545013,1.66782511,671.87,671.24,0.25907411]
[1752166545212,1.66782511,671.88,671.24,0.25907411]
[1752166545415,1.66782511,671.87,671.25,1.953]
[1752166545718,1.66782511,671.88,671.25,1.953]
[1752166549319,1.66782511,671.89,671.26,0.25905771]
[1752166551516,1.66782511,671.91,671.26,0.25905771]
[1752166552822,1.66782511,671.92,671.26,0.25905771]
[1752166553521,1.66782511,671.93,671.26,0.25905771]
[1752166554120,1.66782511,671.87,671.26,0.25905771]
[1752166555319,1.66782511,671.88,671.26,0.25905771]
[1752166555524,1.66782511,671.87,671.26,0.25905771]
[1752166556324,1.66782511,671.88,671.26,0.25905771]
[1752166560124,1.66782511,671.87,671.26,0.25905771]
[1752166560324,1.66782511,671.92,671.26,0.25905771]
[1752166560724,1.66782511,671.95,671.26,0.25905771]
[1752166561732,1.66782511,671.96,671.26,0.25905771]
[1752166562127,1.66782511,671.95,671.26,0.25905771]
[1752166562329,1.66782511,671.96,671.26,0.25905771]
[1752166562827,1.66782511,671.95,671.26,0.25905771]
[1752166563530,1.66782511,671.94,671.26,0.25905771]
[1752166563730,1.66782511,671.97,671.26,0.25905771]
[1752166567641,1.66782511,671.96,671.26,0.25905771]
[1752166570344,1.66782511,671.95,671.26,0.25905771]
[1752166573244,1.66782511,671.94,671.26,0.25905771]
[1752166574248,1.66782511,671.93,671.26,0.25905771]
[1752166574449,1.66782511,672.01,671.26,0.25905771]
[1752166575350,1.66782511,672.0,671.26,0.25905771]
[1752166575551,1.66782511,672.0,671.27,1.85]
[1752166579255,1.66782511,671.99,671.27,1.85]
[1752166579857,0.25904229,672.23,671.27,1.85]
[1752166579858,1.66782511,672.01,671.27,1.85]
[1752166584059,1.66782511,672.04,671.27,1.85]
[1752166584862,0.25901433,672.3,671.27,1.85]
[1752166584863,1.66782511,672.07,671.27,1.85]
[1752166585158,1.66782511,672.06,671.27,1.85]
[1752166587768,1.66782511,672.05,671.27,1.85]
[1752166589161,1.66782511,672.04,671.27,1.85]
[1752166589862,1.66782511,672.03,671.27,1.85]
[1752166590266,1.66782511,672.02,671.27,1.85]
[1752166591870,1.66782511,672.01,671.27,1.85]
[1752166593271,1.66782511,672.0,671.27,1.85]
[1752166594068,1.66782511,671.98,671.27,1.85]
[1752166594875,1.66782511,671.93,671.27,1.85]
[1752166595570,2.22616171,672.07,671.27,1.85]
[1752166595871,1.66828184,671.93,671.27,1.85]
[1752166598071,1.66828184,671.96,671.27,1.85]
[1752166598573,1.66828184,671.96,671.26,0.25905771]
[1752166600777,1.66828184,671.95,671.26,0.25905771]
[1752166601974,1.66828184,671.95,671.27,1.785]
[1752166603076,1.66828184,671.96,671.27,1.785]
[1752166603277,1.66828184,671.95,671.27,1.785]
[1752166604277,1.66828184,671.98,671.27,1.785]
[1752166605779,1.66828184,671.99,671.27,1.785]
[1752166606078,1.66828184,672.01,671.27,1.785]
[1752166606973,0.25899987,672.39,671.27,1.785]
[1752166606974,1.66828184,672.09,671.27,1.785]
[1752166607476,2.22616171,672.26,671.27,1.785]
[1752166607676,1.6680295,672.09,671.27,1.785]
[1752166609082,1.6680295,672.07,671.27,1.785]
[1752166609282,1.6680295,672.08,671.27,1.785]
[1752166611180,1.6680295,672.09,671.27,1.785]
[1752166611681,1.6680295,672.06,671.32,2.20213116]
[1752166612581,1.6680295,672.0,671.27,1.785]
[1752166613282,1.6680295,671.99,671.27,1.785]
[1752166613487,1.6680295,672.0,671.27,1.785]
[1752166615785,1.6680295,671.99,671.27,1.785]
[1752166617286,1.6680295,671.98,671.27,1.785]
[1752166618887,1.6680295,671.98,671.27,3.98713116]
[1752166619086,1.6680295,671.98,671.27,1.785]
[1752166619291,1.6680295,671.97,671.27,3.98713116]
[1752166620593,1.6680295,671.98,671.27,1.785]
[1752166621896,1.6680295,671.99,671.27,1.785]
[1752166622100,1.6680295,671.98,671.27,1.785]
[1752166622702,1.6680295,671.98,671.27,3.98713116]
[1752166623197,1.6680295,671.97,671.27,3.98713116]
[1752166624101,1.6680295,672.03,671.33,2.20213116]
[1752166626203,1.6680295,672.16,671.27,1.785]
[1752166626498,1.6680295,672.2,671.27,1.785]
[1752166627308,1.6680295,672.15,671.27,1.785]
[1752166629800,1.6680295,672.08,671.27,1.785]
[1752166630505,1.6680295,672.01,671.27,1.785]
[1752166631501,1.6680295,671.98,671.27,1.785]
[1752166632601,1.6680295,672.02,671.27,1.785]
[1752166633006,1.6680295,672.01,671.27,1.785]
[1752166634115,1.6680295,672.05,671.27,1.785]
[1752166635706,1.6680295,672.06,671.27,1.785]
[1752166637908,1.6680295,672.05,671.27,1.785]
[1752166638410,1.6680295,672.06,671.27,1.785]
[1752166638610,1.6680295,672.05,671.27,1.785]
[1752166642516,1.6680295,672.03,671.27,1.785]
[1752166643416,1.66989898,672.03,671.27,1.785]
[1752166644118,1.66989898,671.96,671.27,1.785]
[1752166645516,1.66989898,671.94,671.27,1.785]
[1752166646014,1.66989898,671.95,671.27,1.785]
[1752166647716,1.66989898,671.93,671.27,1.785]
[1752166648617,1.66989898,671.92,671.27,1.785]
[1752166649423,1.66989898,671.93,671.27,1.785]
[1752166649620,1.66989898,671.94,671.27,1.785]
[1752166650021,1.66989898,671.93,671.27,1.785]
[1752166651017,1.66989898,671.82,671.27,1.785]
[1752166651217,1.66989898,671.83,671.27,1.785]
[1752166653122,1.66989898,671.84,671.27,1.785]
[1752166654024,1.66989898,671.86,671.27,1.785]
[1752166656118,1.66989898,671.87,671.27,1.785]
[1752166656318,1.66989898,671.88,671.27,1.785]
[1752166656822,1.66989898,671.87,671.27,1.785]
[1752166657118,1.66989898,671.87,671.26,0.25905771]
[1752166657321,1.66989898,671.88,671.26,0.25905771]
[1752166659318,1.66989898,671.89,671.26,0.25905771]
[1752166659522,1.66989898,671.88,671.26,0.25905771]
[1752166660324,1.66989898,671.88,671.27,1.963]
[1752166662921,1.66989898,671.9,671.27,1.963]
[1752166663221,0.25897674,672.46,671.27,1.963]
[1752166663222,1.66989898,671.93,671.27,1.963]
[1752166664225,1.66989898,671.89,671.27,1.963]
[1752166664525,1.66989898,671.9,671.27,1.963]
[1752166665926,0.25897674,672.46,671.27,1.963]
[1752166665927,1.66989898,671.89,671.27,1.963]
[1752166666125,1.66989898,671.9,671.27,1.963]
[1752166666623,1.66989898,671.89,671.27,1.963]
[1752166667628,1.66989898,671.9,671.27,1.963]
[1752166669530,1.66989898,671.89,671.27,1.963]
[1752166669726,1.66989898,671.92,671.27,1.963]
[1752166671127,1.66989898,671.91,671.27,1.963]
[1752166671527,0.25897674,672.46,671.27,1.963]
[1752166671528,1.66989898,671.92,671.27,1.963]
[1752166671829,1.66989898,671.94,671.27,1.963]
[1752166672532,1.66989898,671.93,671.27,1.963]
[1752166673028,1.66989898,671.92,671.27,1.963]
[1752166673733,1.66989898,671.94,671.27,1.963]
[1752166673931,1.66989898,671.95,671.27,1.963]
[1752166674333,1.66989898,671.98,671.27,1.963]
[1752166674834,1.66989898,671.97,671.27,1.963]
[1752166675430,2.22616171,672.12,671.27,1.963]
[1752166675636,1.6680141,671.97,671.27,1.963]
[1752166678433,1.6680141,671.95,671.27,1.963]
[1752166683140,1.6680141,671.96,671.27,1.963]
[1752166683741,1.6680141,671.97,671.27,1.963]
[1752166684036,1.6680141,672.03,671.26,0.25905771]
[1752166684235,1.6680141,672.02,671.26,0.25905771]
[1752166685135,1.6680141,672.03,671.26,0.25905771]
[1752166686844,1.6680141,672.03,671.27,1.945]
[1752166687144,1.6680141,672.02,671.27,1.945]
[1752166692651,1.6680141,672.03,671.27,1.945]
[1752166692949,1.6680141,672.02,671.27,1.945]
[1752166694052,3.33961706,672.33,671.27,1.945]
[1752166694053,1.6680141,671.96,671.27,1.945]
[1752166694348,1.6680141,671.95,671.27,1.945]
[1752166696554,1.6680141,671.99,671.27,1.945]
[1752166696754,1.6680141,672.0,671.27,1.945]
[1752166699152,1.6680141,672.01,671.27,1.945]
[1752166699456,1.6680141,672.0,671.27,1.945]
[1752166700351,1.6680141,672.01,671.27,1.945]
[1752166702157,1.6680141,672.02,671.27,1.945]
[1752166702954,1.6680141,672.0,671.27,1.945]
[1752166704160,1.6680141,672.03,671.27,1.945]
[1752166708159,1.6680141,672.04,671.27,1.945]
[1752166709264,1.6680141,672.03,671.27,1.945]
[1752166713263,1.6680141,672.02,671.27,1.945]
[1752166714066,1.6680141,672.0,671.27,1.945]
[1752166715265,1.6680141,671.99,671.27,1.945]
[1752166715661,1.6680141,672.0,671.27,1.945]
[1752166716067,1.6680141,672.03,671.27,1.945]
[1752166716765,1.6680141,672.02,671.27,1.945]
[1752166717965,1.6680141,672.02,671.26,0.25905771]
[1752166719269,1.6680141,672.01,671.26,0.25905771]
[1752166721168,1.6680141,672.0,671.26,0.25905771]
[1752166721372,1.6680141,672.0,671.27,2.397]
[1752166721570,1.6680141,672.01,671.27,2.397]
[1752166721769,1.6680141,672.0,671.27,2.397]
[1752166723574,1.6680141,671.99,671.27,2.397]
[1752166724074,1.6680141,672.05,671.27,2.397]
[1752166724370,1.6680141,672.02,671.3,2.20213116]
[1752166726170,1.6680141,672.01,671.3,2.20213116]
[1752166726474,1.6680141,672.02,671.3,2.20213116]
[1752166726674,1.6680141,672.01,671.32,2.20213116]
[1752166727174,1.6680141,672.0,671.33,2.20213116]
[1752166728172,1.6680141,672.0,671.34,2.20213116]
[1752166728775,1.6680141,672.0,671.33,2.20213116]
[1752166728972,1.6680141,672.0,671.32,2.20213116]
[1752166729179,1.6680141,672.0,671.33,2.20213116]
[1752166730272,1.6680141,671.99,671.34,2.20213116]
[1752166732075,2.22616171,672.13,671.34,2.20213116]
[1752166732076,1.6680141,671.98,671.34,2.20213116]
[1752166734079,1.6680141,671.9,671.31,2.20213116]
[1752166734579,1.6680141,671.9,671.27,2.397]
[1752166734874,1.6680141,672.05,671.27,2.397]
[1752166735178,1.6680141,672.06,671.27,2.397]
[1752166736379,1.6680141,672.04,671.27,2.397]
[1752166738177,1.6680141,672.02,671.27,2.397]
[1752166738376,2.22616171,672.22,671.27,2.397]
[1752166738377,1.6680141,672.01,671.27,2.397]
[1752166739378,1.6680141,671.97,671.27,2.397]
[1752166739979,1.6680141,671.98,671.27,2.397]
[1752166740679,1.6680141,671.97,671.27,2.397]
[1752166742981,1.6680141,671.95,671.27,2.397]
[1752166743882,1.6680141,671.94,671.28,2.20213116]
[1752166744283,1.6680141,671.96,671.29,2.20213116]
[1752166744588,1.6680141,671.95,671.31,2.20213116]
[1752166747286,1.6680141,671.95,671.3,2.20213116]
[1752166747587,1.6680141,671.96,671.3,2.20213116]
[1752166749085,1.6680141,671.95,671.3,2.20213116]
[1752166749486,1.6680141,671.95,671.31,2.20213116]
[1752166749687,1.6680141,671.95,671.33,0.25901144]
[1752166751189,1.6680141,671.94,671.33,0.25901144]
[1752166754092,1.6680141,671.93,671.33,0.25901144]
[1752166754292,1.6680141,671.9,671.33,0.25901144]
[1752166755594,1.6680141,671.89,671.33,0.25901144]
[1752166758302,1.6680141,671.87,671.35,2.20213116]
[1752166767707,1.6680141,671.87,671.36,1.626]
[1752166769304,1.6680141,671.89,671.36,1.626]
[1752166772110,1.6680141,671.9,671.36,1.626]
[1752166772613,1.6680141,671.91,671.36,1.626]
[1752166773415,1.6680141,671.92,671.36,1.626]
[1752166774115,1.6680141,671.95,671.36,1.626]
[1752166777517,1.6680141,671.96,671.36,1.626]
[1752166779620,1.67162897,671.96,671.36,1.626]
[1752166780622,1.67162897,671.95,671.36,1.626]
[1752166780819,1.67162897,671.96,671.36,1.626]
[1752166781922,1.67162897,671.95,671.36,1.626]
[1752166782119,1.67162897,671.96,671.36,1.626]
[1752166782523,1.67162897,671.95,671.36,1.626]
[1752166783823,1.67162897,671.95,671.33,0.25901144]
[1752166784323,1.67162897,671.91,671.33,0.25901144]
[1752166785022,1.67162897,671.9,671.33,0.25901144]
[1752166786021,1.67162897,671.94,671.33,0.25901144]
[1752166786624,1.67162897,671.94,671.34,1.568]
[1752166786824,1.67162897,671.95,671.34,1.568]
[1752166792530,1.67162897,671.96,671.34,1.568]
[1752166792831,1.67162897,671.95,671.34,1.568]
[1752166795934,1.67162897,671.92,671.34,1.568]
[1752166797032,1.67162897,671.91,671.34,1.568]
[1752166798131,1.67162897,671.9,671.34,1.568]
[1752166798430,1.67162897,671.92,671.34,1.568]
[1752166799630,1.67162897,671.93,671.34,1.568]
[1752166799830,1.67162897,671.94,671.34,1.568]
[1752166800531,1.67162897,671.97,671.34,1.568]
[1752166800731,1.67162897,671.98,671.34,1.568]
[1752166801134,1.67162897,671.97,671.34,1.568]
[1752166801634,1.67162897,671.98,671.34,1.568]
[1752166802134,1.67162897,672.2,671.42,2.20213116]
[1752166802635,1.67162897,672.15,671.53,2.20213116]
[1752166802931,1.67162897,672.14,671.54,2.20213116]
[1752166803134,1.67162897,672.13,671.57,2.20213116]
[1752166803530,1.67162897,672.13,671.55,2.20213116]
[1752166804130,1.67162897,672.13,671.56,2.20213116]
[1752166804534,1.67162897,672.12,671.57,2.20213116]
[1752166804735,1.67162897,672.12,671.56,2.20213116]
[1752166805535,1.67162897,672.17,671.46,2.20213116]
[1752166806838,1.67162897,672.17,671.47,2.20213116]
[1752166807638,1.67162897,672.16,671.47,2.20213116]
[1752166808435,1.67162897,672.17,671.47,2.20213116]
[1752166808636,1.67162897,672.17,671.46,2.20213116]
[1752166809238,1.67162897,672.16,671.47,2.20213116]
[1752166809635,1.67162897,672.16,671.46,2.20213116]
[1752166809936,1.67162897,672.17,671.47,2.20213116]
[1752166810139,1.67162897,672.17,671.46,2.20213116]
[1752166810736,1.67162897,672.17,671.47,2.20213116]
[1752166810941,1.67162897,672.12,671.54,2.20213116]
[1752166812346,1.67162897,672.11,671.48,2.20213116]
[1752166812843,1.67162897,672.11,671.49,2.20213116]
[1752166813046,1.67162897,672.09,671.47,2.20213116]
[1752166815041,1.67162897,672.09,671.34,1.568]
[1752166815042,1.67162897,672.1,671.45,2.20213116]
[1752166815542,1.67162897,672.1,671.46,2.20213116]
[1752166815947,1.67162897,672.1,671.45,2.20213116]
[1752166816642,1.67162897,672.1,671.46,2.20213116]
[1752166817849,1.67162897,672.12,671.42,2.20213116]
[1752166818048,1.67162897,672.09,671.4,2.20213116]
[1752166819456,1.67162897,672.09,671.39,2.20213116]
[1752166820554,1.67162897,672.09,671.38,2.20213116]
[1752166820854,1.67162897,672.07,671.36,2.20213116]
[1752166821057,1.67162897,672.06,671.37,2.20213116]
[1752166822355,1.67162897,672.07,671.36,2.20213116]
[1752166822653,1.67162897,672.06,671.37,2.20213116]
[1752166823454,1.67162897,672.07,671.37,2.20213116]
[1752166824455,1.67162897,672.07,671.36,2.20213116]
[1752166825662,1.67162897,672.05,671.42,2.20213116]
[1752166825862,1.67162897,672.04,671.44,2.20213116]
[1752166827062,1.67162897,672.05,671.43,2.20213116]
[1752166827959,1.67162897,672.06,671.4,2.20213116]
[1752166828359,1.67162897,672.07,671.38,2.20213116]
[1752166828763,1.67162897,672.05,671.36,2.20213116]
[1752166828962,1.67162897,672.05,671.37,2.20213116]
[1752166829567,1.67162897,672.05,671.36,2.20213116]
[1752166829768,1.67162897,672.02,671.42,2.20213116]
[1752166830368,1.67162897,672.02,671.43,2.20213116]
[1752166830765,1.67162897,672.04,671.4,2.20213116]
[1752166831468,1.67162897,672.06,671.34,3.77013116]
[1752166831666,1.67162897,672.06,671.35,2.20213116]
[1752166831866,1.67162897,672.07,671.34,3.77013116]
[1752166832766,1.67162897,672.06,671.35,2.20213116]
[1752166833066,1.67162897,672.04,671.39,2.20213116]
[1752166833370,1.67162897,672.04,671.41,2.20213116]
[1752166833669,1.67162897,672.04,671.4,2.20213116]
[1752166833866,1.67162897,672.05,671.38,2.20213116]
[1752166834070,1.67162897,672.05,671.37,2.20213116]
[1752166834568,1.67162897,672.05,671.38,2.20213116]
[1752166835065,1.67162897,672.05,671.39,2.20213116]
[1752166835865,1.67162897,672.05,671.4,2.20213116]
[1752166836069,1.67162897,672.06,671.37,2.20213116]
[1752166836269,1.67162897,672.05,671.38,2.20213116]
[1752166836465,1.67162897,672.05,671.39,2.20213116]
[1752166836770,1.67162897,672.06,671.37,2.20213116]
[1752166837766,1.67162897,672.05,671.39,2.20213116]
[1752166837966,1.67162897,672.06,671.37,2.20213116]
[1752166838266,1.67162897,672.05,671.39,2.20213116]
[1752166838470,1.67162897,672.05,671.4,2.20213116]
[1752166838666,1.67162897,672.05,671.39,2.20213116]
[1752166839470,1.67162897,672.06,671.39,2.20213116]
[1752166839970,1.67162897,672.08,671.33,0.25901144]
[1752166840467,1.67162897,672.08,671.33,2.4611426]
[1752166841468,1.67162897,672.08,671.33,0.25901144]
[1752166842272,1.67162897,672.08,671.34,1.913]
[1752166843269,1.67162897,672.06,671.39,2.20213116]
[1752166843569,1.67162897,672.05,671.4,2.20213116]
[1752166843769,3.33961706,672.3,671.34,1.913]
[1752166843770,1.67162897,672.06,671.38,2.20213116]
[1752166844272,1.67162897,672.06,671.37,2.20213116]
[1752166844467,1.67162897,672.07,671.34,4.11513116]
[1752166845372,0.25897,672.38,671.34,1.913]
[1752166845373,1.67162897,672.08,671.34,1.913]
[1752166847367,1.67162897,672.09,671.34,1.913]
[1752166847569,1.67162897,672.05,671.34,1.913]
[1752166849376,1.67162897,672.06,671.34,1.913]
[1752166852176,1.67162897,672.05,671.34,1.913]
[1752166853275,1.67162897,672.04,671.34,1.913]
[1752166857280,1.67162897,672.03,671.34,4.11513116]
[1752166857983,1.67162897,672.04,671.34,1.913]
[1752166860180,1.67162897,672.05,671.34,1.913]
[1752166860385,1.67162897,672.04,671.34,1.913]
[1752166860584,1.67162897,672.05,671.34,1.913]
[1752166862284,1.67162897,672.06,671.34,1.913]
[1752166862483,1.67162897,672.05,671.34,1.913]
[1752166863185,1.67162897,672.06,671.34,1.913]
[1752166863387,1.67162897,672.05,671.34,1.913]
[1752166863791,1.67162897,672.06,671.34,1.913]
[1752166865988,1.67162897,672.07,671.34,1.913]
[1752166867388,1.67162897,672.06,671.34,1.913]
[1752166869395,1.67162897,672.05,671.34,1.913]
[1752166871297,1.67162897,672.04,671.34,1.913]
[1752166871494,1.67162897,672.03,671.34,1.913]
[1752166872093,1.67162897,672.04,671.34,1.913]
[1752166872492,1.67162897,672.03,671.34,1.913]
[1752166874696,1.67162897,672.04,671.34,1.913]
[1752166875400,1.67162897,672.03,671.34,1.913]
[1752166876001,1.67162897,672.02,671.34,1.913]
[1752166876499,1.67162897,671.93,671.34,1.913]
[1752166877196,1.67162897,671.91,671.34,1.913]
[1752166877798,1.27289478,672.04,671.34,1.913]
[1752166877799,1.67162897,671.9,671.34,1.913]
[1752166879398,1.67162897,671.93,671.34,1.913]
[1752166879903,1.67162897,671.87,671.34,1.913]
[1752166880397,1.67162897,671.85,671.34,1.913]
[1752166880998,1.67162897,671.86,671.34,1.913]
[1752166881203,1.67162897,671.85,671.34,1.913]
[1752166881400,1.67162897,671.86,671.34,1.913]
[1752166881703,1.67162897,671.85,671.34,1.913]
[1752166882400,1.67162897,671.86,671.34,1.913]
[1752166883404,1.67162897,671.88,671.34,1.913]
[1752166884401,1.67162897,671.89,671.34,1.913]
[1752166885304,1.67162897,671.89,671.11,0.25906446]
[1752166886306,1.67162897,671.9,671.11,0.25906446]
[1752166887403,1.67162897,671.91,671.11,0.25906446]
[1752166888205,1.67162897,671.91,671.12,1.831]
[1752166888608,1.67162897,671.92,671.12,1.831]
[1752166889208,1.67162897,671.9,671.12,1.831]
[1752166889408,1.67162897,671.91,671.12,1.831]
[1752166890706,1.67162897,671.9,671.12,1.831]
[1752166893407,1.67162897,671.88,671.12,1.831]
[1752166894609,1.67162897,671.89,671.12,1.831]
[1752166896414,1.67162897,671.9,671.12,1.831]
[1752166897821,1.67162897,671.89,671.12,1.831]
[1752166899915,1.67162897,671.9,671.12,1.831]
[1752166902014,1.67162897,671.88,671.12,1.831]
[1752166902216,1.67162897,671.94,671.12,1.831]
[1752166902720,1.66581192,671.94,671.12,1.831]
[1752166903421,1.66581192,671.88,671.06,0.25910883]
[1752166903814,1.66581192,671.89,671.06,0.25910883]
[1752166904019,1.66581192,671.87,671.07,2.20213116]
[1752166904416,1.66581192,671.92,671.06,0.25910883]
[1752166906623,1.66581192,671.92,671.07,2.22]
[1752166906920,1.66581192,671.93,671.07,2.22]
[1752166907727,1.66581192,672.01,671.07,2.22]
[1752166908927,1.66581192,672.06,671.07,2.22]
[1752166911327,1.66581192,672.05,671.07,2.22]
[1752166911528,1.66581192,672.03,671.12,2.20213116]
[1752166913329,1.66581192,671.99,671.2,2.20213116]
[1752166914326,1.66581192,671.99,671.21,2.20213116]
[1752166914525,1.66581192,672.01,671.16,2.20213116]
[1752166914725,1.66581192,672.01,671.15,2.20213116]
[1752166915529,1.66581192,672.01,671.16,2.20213116]
[1752166916430,1.66581192,672.04,671.08,2.20213116]
[1752166916631,1.66581192,672.04,671.09,2.20213116]
[1752166921136,1.66581192,672.07,671.07,2.22]
[1752166921332,1.66581192,672.05,671.07,2.22]
[1752166921631,1.66581192,672.02,671.07,2.22]
[1752166922732,1.66581192,672.01,671.07,2.22]
[1752166923632,1.66581192,672.01,671.1,0.25908375]
[1752166923836,1.66581192,672.0,671.1,0.25908375]
[1752166924036,1.66581192,672.01,671.1,0.25908375]
[1752166924536,1.66581192,672.0,671.1,0.25908375]
[1752166925638,0.25908375,672.08,671.1,0.25908375]
[1752166925639,1.66581192,671.98,671.1,0.25908375]
[1752166928435,1.66581192,671.97,671.1,0.25908375]
[1752166928641,1.66786226,671.97,671.1,0.25908375]